[Event "January 2 Late 2024"]
[Site "https://www.chess.com"]
[Date "2024.01.02"]
[Round "11"]
[White "Do Valle Cardoso, Lucas"]
[Black "Ljukin, Sergei"]
[Result "1-0"]
[Board "41"]
[TimeControl "180+1"]
[WhiteFideId "2163144"]
[BlackFideId "14102200"]
[WhiteElo "2701"]
[BlackElo "2544"]
[WhiteTeam "BRA"]
[BlackTeam "UKR"]
[WhiteClock "0:00:05"]
[BlackClock "0:00:01"]

1. e4 {[%clk 0:03:00]}  e6 {[%clk 0:02:59]} 2. Nc3 {[%clk 0:03:01]}  d5 {[%clk 0:03:00]} 3. d4 {[%clk 0:03:02]}  Bb4 {[%clk 0:02:59]} 4. e5 {[%clk 0:02:58]}  Ne7 {[%clk 0:02:59]} 5. a3 {[%clk 0:02:59]}  Bxc3+ {[%clk 0:02:59]} 6. bxc3 {[%clk 0:03:00]}  c5 {[%clk 0:02:59]} 7. Qg4 {[%clk 0:03:01]}  Qc7 {[%clk 0:02:58]} 8. Qxg7 {[%clk 0:03:01]}  Rg8 {[%clk 0:02:58]} 9. Qxh7 {[%clk 0:03:02]}  cxd4 {[%clk 0:02:58]} 10. Ne2 {[%clk 0:03:03]}  Nbc6 {[%clk 0:02:58]} 11. f4 {[%clk 0:03:03]}  Bd7 {[%clk 0:02:58]} 12. Qd3 {[%clk 0:02:58]}  dxc3 {[%clk 0:02:59]} 13. Qxc3 {[%clk 0:02:56]}  Nf5 {[%clk 0:02:58]} 14. g3 {[%clk 0:02:56]}  d4 {[%clk 0:02:56]} 15. Qc4 {[%clk 0:02:55]}  O-O-O {[%clk 0:02:49]} 16. Bg2 {[%clk 0:02:45]}  Kb8 {[%clk 0:02:49]} 17. Rb1 {[%clk 0:02:38]}  Rc8 {[%clk 0:02:47]} 18. Bd2 {[%clk 0:02:37]}  Qd8 {[%clk 0:02:14]} 19. O-O {[%clk 0:02:18]}  b6 {[%clk 0:01:54]} 20. a4 {[%clk 0:02:12]}  Nce7 {[%clk 0:01:30]} 21. Qa6 {[%clk 0:02:07]}  Bc6 {[%clk 0:01:30]} 22. a5 {[%clk 0:02:03]}  Bxg2 {[%clk 0:01:24]} 23. axb6 {[%clk 0:02:02]}  axb6 {[%clk 0:01:20]} 24. Rxb6+ {[%clk 0:01:59]}  Qxb6 {[%clk 0:01:06]} 25. Qxb6+ {[%clk 0:02:00]}  Bb7 {[%clk 0:01:06]} 26. Rb1 {[%clk 0:01:55]}  Rc7 {[%clk 0:01:06]} 27. Bb4 {[%clk 0:01:37]}  Nd5 {[%clk 0:01:06]} 28. Qa5 {[%clk 0:01:34]}  Nxb4 {[%clk 0:01:05]} 29. Qxb4 {[%clk 0:01:34]}  Rd8 {[%clk 0:01:02]} 30. g4 {[%clk 0:00:48]}  Nh4 {[%clk 0:01:02]} 31. h3 {[%clk 0:00:41]}  Rdd7 {[%clk 0:00:58]} 32. Rb2 {[%clk 0:00:34]}  d3 {[%clk 0:00:48]} 33. cxd3 {[%clk 0:00:32]}  Rxd3 {[%clk 0:00:48]} 34. Kf2 {[%clk 0:00:29]}  Rf3+ {[%clk 0:00:30]} 35. Ke1 {[%clk 0:00:29]}  Ng2+ {[%clk 0:00:30]} 36. Kd2 {[%clk 0:00:29]}  Rd7+ {[%clk 0:00:30]} 37. Kc2 {[%clk 0:00:19]}  Ne3+ {[%clk 0:00:20]} 38. Kb1 {[%clk 0:00:20]}  Nd5 {[%clk 0:00:15]} 39. Qf8+ {[%clk 0:00:18]}  Ka7 {[%clk 0:00:10]} 40. Qc5+ {[%clk 0:00:15]}  Kb8 {[%clk 0:00:09]} 41. Nd4 {[%clk 0:00:14]}  Nc3+ {[%clk 0:00:08]} 42. Kc2 {[%clk 0:00:14]}  Rc7 {[%clk 0:00:05]} 43. Qf8+ {[%clk 0:00:11]}  Rc8 {[%clk 0:00:05]} 44. Qd6+ {[%clk 0:00:11]}  Rc7 {[%clk 0:00:05]} 45. Nxf3 {[%clk 0:00:09]}  Ne4+ {[%clk 0:00:05]} 46. Kd3 {[%clk 0:00:09]}  Nxd6 {[%clk 0:00:04]} 47. exd6 {[%clk 0:00:10]}  Rd7 {[%clk 0:00:05]} 48. Ne5 {[%clk 0:00:05]}  Rxd6+ {[%clk 0:00:05]} 49. Ke3 {[%clk 0:00:06]}  f6 {[%clk 0:00:06]} 50. Nc4 {[%clk 0:00:05]}  Rc6 {[%clk 0:00:04]} 51. Na5 {[%clk 0:00:05]}  Rc3+ {[%clk 0:00:04]} 52. Kd4 {[%clk 0:00:05]}  Rc7 {[%clk 0:00:01]} 53. Rxb7+ {[%clk 0:00:05]} 1-0

[Event "January 2 Late 2024"]
[Site "https://www.chess.com"]
[Date "2024.01.02"]
[Round "11"]
[White "Carlsson, Ludvig"]
[Black "Makaraci, Tunahan"]
[Result "0-1"]
[Board "42"]
[TimeControl "180+1"]
[WhiteFideId "1727010"]
[BlackFideId "6356559"]
[WhiteElo "2698"]
[BlackElo "2543"]
[WhiteTeam "SWE"]
[BlackTeam "TUR"]
[WhiteClock "0:00:03"]
[BlackClock "0:00:06"]

1. e4 {[%clk 0:03:00]}  c5 {[%clk 0:02:59]} 2. Nf3 {[%clk 0:02:58]}  Nc6 {[%clk 0:02:59]} 3. Nc3 {[%clk 0:02:58]}  g6 {[%clk 0:02:59]} 4. d4 {[%clk 0:02:58]}  cxd4 {[%clk 0:03:00]} 5. Nxd4 {[%clk 0:02:59]}  Bg7 {[%clk 0:02:59]} 6. Be3 {[%clk 0:03:00]}  Nf6 {[%clk 0:02:59]} 7. Bc4 {[%clk 0:03:00]}  O-O {[%clk 0:02:59]} 8. Bb3 {[%clk 0:02:53]}  d6 {[%clk 0:02:59]} 9. h3 {[%clk 0:02:45]}  Na5 {[%clk 0:02:55]} 10. O-O {[%clk 0:02:42]}  b6 {[%clk 0:02:53]} 11. Re1 {[%clk 0:02:19]}  Bb7 {[%clk 0:02:51]} 12. Qd3 {[%clk 0:02:19]}  Nd7 {[%clk 0:02:46]} 13. Bd5 {[%clk 0:02:15]}  Nc5 {[%clk 0:02:42]} 14. Qe2 {[%clk 0:02:07]}  Ba6 {[%clk 0:02:29]} 15. Qf3 {[%clk 0:02:06]}  Nc4 {[%clk 0:02:21]} 16. Bxa8 {[%clk 0:01:55]}  Qxa8 {[%clk 0:02:19]} 17. b3 {[%clk 0:01:48]}  Nxe3 {[%clk 0:02:14]} 18. Qxe3 {[%clk 0:01:49]}  Bb7 {[%clk 0:02:07]} 19. Rad1 {[%clk 0:01:28]}  Rc8 {[%clk 0:01:57]} 20. f3 {[%clk 0:01:09]}  Ne6 {[%clk 0:01:54]} 21. Nde2 {[%clk 0:00:45]}  Ba6 {[%clk 0:01:43]} 22. Nd5 {[%clk 0:00:42]}  Rxc2 {[%clk 0:01:36]} 23. Nxe7+ {[%clk 0:00:39]}  Kf8 {[%clk 0:01:35]} 24. Nd5 {[%clk 0:00:39]}  Qc8 {[%clk 0:01:23]} 25. Nb4 {[%clk 0:00:36]}  Rxe2 {[%clk 0:01:23]} 26. Rxe2 {[%clk 0:00:36]}  Bxe2 {[%clk 0:01:23]} 27. Rc1 {[%clk 0:00:30]}  Qd8 {[%clk 0:00:29]} 28. Qxe2 {[%clk 0:00:30]}  Qg5 {[%clk 0:00:28]} 29. Rc8+ {[%clk 0:00:20]}  Ke7 {[%clk 0:00:28]} 30. Nd5+ {[%clk 0:00:18]}  Kd7 {[%clk 0:00:28]} 31. Qc2 {[%clk 0:00:17]}  Bd4+ {[%clk 0:00:27]} 32. Kh1 {[%clk 0:00:17]}  Nc5 {[%clk 0:00:21]} 33. Rc7+ {[%clk 0:00:16]}  Kd8 {[%clk 0:00:20]} 34. b4 {[%clk 0:00:17]}  Qg3 {[%clk 0:00:19]} 35. Qd2 {[%clk 0:00:11]}  Be5 {[%clk 0:00:14]} 36. f4 {[%clk 0:00:10]}  Nxe4 {[%clk 0:00:14]} 37. Qc2 {[%clk 0:00:06]}  Nf2+ {[%clk 0:00:09]} 38. Qxf2 {[%clk 0:00:04]}  Qxf2 {[%clk 0:00:09]} 39. fxe5 {[%clk 0:00:05]}  Qe1+ {[%clk 0:00:08]} 40. Kh2 {[%clk 0:00:04]}  Qxe5+ {[%clk 0:00:08]} 41. Kh1 {[%clk 0:00:04]}  Qxd5 {[%clk 0:00:08]} 42. Rxa7 {[%clk 0:00:05]}  Qd1+ {[%clk 0:00:08]} 43. Kh2 {[%clk 0:00:05]}  d5 {[%clk 0:00:08]} 44. a4 {[%clk 0:00:04]}  d4 {[%clk 0:00:08]} 45. a5 {[%clk 0:00:04]}  bxa5 {[%clk 0:00:08]} 46. bxa5 {[%clk 0:00:05]}  Qa4 {[%clk 0:00:05]} 47. a6 {[%clk 0:00:04]}  d3 {[%clk 0:00:05]} 48. Ra8+ {[%clk 0:00:05]}  Ke7 {[%clk 0:00:05]} 49. Ra7+ {[%clk 0:00:05]}  Kf6 {[%clk 0:00:05]} 50. Ra8 {[%clk 0:00:04]}  d2 {[%clk 0:00:04]} 51. Rd8 {[%clk 0:00:05]}  Qf4+ {[%clk 0:00:04]} 52. Kg1 {[%clk 0:00:04]}  Qe3+ {[%clk 0:00:04]} 53. Kh2 {[%clk 0:00:04]}  Qe5+ {[%clk 0:00:04]} 54. Kg1 {[%clk 0:00:04]}  Qc5+ {[%clk 0:00:04]} 55. Kf1 {[%clk 0:00:04]}  Qc1+ {[%clk 0:00:04]} 56. Ke2 {[%clk 0:00:04]}  Qc4+ {[%clk 0:00:02]} 57. Kxd2 {[%clk 0:00:05]}  Qb4+ {[%clk 0:00:03]} 58. Ke3 {[%clk 0:00:04]}  Qb6+ {[%clk 0:00:03]} 59. Rd4 {[%clk 0:00:04]}  Qxa6 {[%clk 0:00:03]} 60. Kf3 {[%clk 0:00:05]}  Qb6 {[%clk 0:00:02]} 61. Rd3 {[%clk 0:00:05]}  Kg7 {[%clk 0:00:03]} 62. g4 {[%clk 0:00:05]}  Qf6+ {[%clk 0:00:03]} 63. Ke2 {[%clk 0:00:05]}  Qe5+ {[%clk 0:00:04]} 64. Re3 {[%clk 0:00:05]}  Qh2+ {[%clk 0:00:04]} 65. Kd3 {[%clk 0:00:06]}  f5 {[%clk 0:00:05]} 66. Rf3 {[%clk 0:00:05]}  fxg4 {[%clk 0:00:05]} 67. hxg4 {[%clk 0:00:06]}  Qg2 {[%clk 0:00:05]} 68. Ke3 {[%clk 0:00:06]}  Qxg4 {[%clk 0:00:04]} 69. Rf1 {[%clk 0:00:06]}  Qg3+ {[%clk 0:00:05]} 70. Kd4 {[%clk 0:00:05]}  Qd6+ {[%clk 0:00:04]} 71. Ke3 {[%clk 0:00:06]}  Qc5+ {[%clk 0:00:04]} 72. Ke4 {[%clk 0:00:05]}  Qc4+ {[%clk 0:00:04]} 73. Kf3 {[%clk 0:00:05]}  Qxf1+ {[%clk 0:00:05]} 74. Kg3 {[%clk 0:00:06]}  g5 {[%clk 0:00:05]} 75. Kh2 {[%clk 0:00:06]}  Qf2+ {[%clk 0:00:05]} 76. Kh1 {[%clk 0:00:03]}  Qe2 {[%clk 0:00:06]} 0-1

[Event "January 2 Late 2024"]
[Site "https://www.chess.com"]
[Date "2024.01.02"]
[Round "11"]
[White "Weisz, Bryan"]
[Black "Riff, Vincent"]
[Result "0-1"]
[Board "43"]
[TimeControl "180+1"]
[WhiteFideId "30934133"]
[BlackFideId "617776"]
[WhiteElo "2542"]
[BlackElo "2695"]
[WhiteTeam "USA"]
[BlackTeam "FRA"]
[WhiteClock "0:01:25"]
[BlackClock "0:02:38"]

1. Nf3 {[%clk 0:03:00]}  d5 {[%clk 0:02:58]} 2. d4 {[%clk 0:02:56]}  Nf6 {[%clk 0:02:57]} 3. c4 {[%clk 0:02:56]}  c6 {[%clk 0:02:55]} 4. Nc3 {[%clk 0:02:55]}  dxc4 {[%clk 0:02:54]} 5. a4 {[%clk 0:02:50]}  Bf5 {[%clk 0:02:53]} 6. Ne5 {[%clk 0:02:47]}  e6 {[%clk 0:02:52]} 7. f3 {[%clk 0:02:39]}  Bb4 {[%clk 0:02:52]} 8. e4 {[%clk 0:02:38]}  Bxe4 {[%clk 0:02:52]} 9. fxe4 {[%clk 0:02:37]}  Nxe4 {[%clk 0:02:52]} 10. Qf3 {[%clk 0:02:31]}  Qxd4 {[%clk 0:02:43]} 11. Qxf7+ {[%clk 0:02:28]}  Kd8 {[%clk 0:02:43]} 12. Qxb7 {[%clk 0:01:30]}  Bxc3+ {[%clk 0:02:39]} 13. bxc3 {[%clk 0:01:25]}  Qf2+ {[%clk 0:02:38]} 0-1

[Event "January 2 Late 2024"]
[Site "https://www.chess.com"]
[Date "2024.01.02"]
[Round "11"]
[White "Salazar Farias, Luis German"]
[Black "Hua, Lefong"]
[Result "1-0"]
[Board "44"]
[TimeControl "180+1"]
[WhiteFideId "3902170"]
[BlackFideId "2602253"]
[WhiteElo "2538"]
[BlackElo "2678"]
[WhiteTeam "VEN"]
[BlackTeam "CAN"]
[WhiteClock "0:00:06"]
[BlackClock "0:00:18"]

1. d4 {[%clk 0:02:49]}  Nf6 {[%clk 0:03:00]} 2. c4 {[%clk 0:02:48]}  c5 {[%clk 0:03:00]} 3. d5 {[%clk 0:02:48]}  e6 {[%clk 0:03:01]} 4. Nc3 {[%clk 0:02:49]}  exd5 {[%clk 0:03:01]} 5. cxd5 {[%clk 0:02:50]}  d6 {[%clk 0:03:02]} 6. Nf3 {[%clk 0:02:50]}  g6 {[%clk 0:03:02]} 7. Nd2 {[%clk 0:02:51]}  Nbd7 {[%clk 0:03:02]} 8. e4 {[%clk 0:02:50]}  Bg7 {[%clk 0:03:03]} 9. Be2 {[%clk 0:02:50]}  O-O {[%clk 0:03:03]} 10. O-O {[%clk 0:02:51]}  Re8 {[%clk 0:02:57]} 11. a4 {[%clk 0:02:49]}  Ne5 {[%clk 0:02:52]} 12. Ndb1 {[%clk 0:02:44]}  h6 {[%clk 0:02:47]} 13. f4 {[%clk 0:02:39]}  Ned7 {[%clk 0:02:47]} 14. Nd2 {[%clk 0:02:39]}  c4 {[%clk 0:02:38]} 15. Kh1 {[%clk 0:02:34]}  Nc5 {[%clk 0:02:34]} 16. e5 {[%clk 0:02:34]}  dxe5 {[%clk 0:02:35]} 17. fxe5 {[%clk 0:02:34]}  Rxe5 {[%clk 0:02:36]} 18. Nxc4 {[%clk 0:02:35]}  Re8 {[%clk 0:02:30]} 19. Bf4 {[%clk 0:02:24]}  Nfe4 {[%clk 0:02:18]} 20. Nb5 {[%clk 0:02:07]}  g5 {[%clk 0:01:58]} 21. Bc7 {[%clk 0:01:25]}  Qd7 {[%clk 0:01:54]} 22. h3 {[%clk 0:01:21]}  f5 {[%clk 0:01:27]} 23. Bh2 {[%clk 0:01:11]}  f4 {[%clk 0:01:18]} 24. Bg4 {[%clk 0:01:10]}  Qd8 {[%clk 0:01:08]} 25. Bxc8 {[%clk 0:01:04]}  Rxc8 {[%clk 0:01:08]} 26. Nxa7 {[%clk 0:01:04]}  Ra8 {[%clk 0:01:05]} 27. Nb5 {[%clk 0:01:01]}  Qf6 {[%clk 0:01:02]} 28. Nc7 {[%clk 0:00:56]}  Rac8 {[%clk 0:01:02]} 29. Nxe8 {[%clk 0:00:56]}  Rxe8 {[%clk 0:01:03]} 30. d6 {[%clk 0:00:55]}  Rd8 {[%clk 0:00:55]} 31. Qd5+ {[%clk 0:00:42]}  Qf7 {[%clk 0:00:53]} 32. Rad1 {[%clk 0:00:37]}  Qxd5 {[%clk 0:00:48]} 33. Rxd5 {[%clk 0:00:37]}  Nxa4 {[%clk 0:00:48]} 34. Re1 {[%clk 0:00:18]}  Nf6 {[%clk 0:00:41]} 35. Rb5 {[%clk 0:00:18]}  Bf8 {[%clk 0:00:32]} 36. Ra1 {[%clk 0:00:17]}  Ra8 {[%clk 0:00:27]} 37. b3 {[%clk 0:00:15]}  Rc8 {[%clk 0:00:23]} 38. Rxa4 {[%clk 0:00:15]}  Nd7 {[%clk 0:00:23]} 39. Ra1 {[%clk 0:00:14]}  Rb8 {[%clk 0:00:22]} 40. Bg1 {[%clk 0:00:14]}  Kf7 {[%clk 0:00:22]} 41. Re1 {[%clk 0:00:14]}  b6 {[%clk 0:00:21]} 42. Rd5 {[%clk 0:00:12]}  b5 {[%clk 0:00:21]} 43. Ne5+ {[%clk 0:00:12]}  Nxe5 {[%clk 0:00:22]} 44. Rdxe5 {[%clk 0:00:11]}  Bxd6 {[%clk 0:00:22]} 45. Re6 {[%clk 0:00:11]}  Bb4 {[%clk 0:00:22]} 46. R1e2 {[%clk 0:00:09]}  Rc8 {[%clk 0:00:22]} 47. Kh2 {[%clk 0:00:09]}  Rc1 {[%clk 0:00:22]} 48. R6e5 {[%clk 0:00:07]}  Be1 {[%clk 0:00:19]} 49. Rxe1 {[%clk 0:00:07]}  Rc3 {[%clk 0:00:19]} 50. Rxb5 {[%clk 0:00:06]}  Rxb3 {[%clk 0:00:18]} 51. Rxb3 {[%clk 0:00:06]} 1-0

[Event "January 2 Late 2024"]
[Site "https://www.chess.com"]
[Date "2024.01.02"]
[Round "11"]
[White "xakevicius91"]
[Black "Janaszak, Dawid"]
[Result "1-0"]
[Board "47"]
[TimeControl "180+1"]
[BlackFideId "1119206"]
[WhiteElo "2522"]
[BlackElo "2633"]
[BlackTeam "POL"]
[WhiteClock "0:00:05"]
[BlackClock "0:00:00"]

1. e4 {[%clk 0:03:00]}  c6 {[%clk 0:02:58]} 2. d4 {[%clk 0:02:59]}  d5 {[%clk 0:02:58]} 3. e5 {[%clk 0:03:00]}  c5 {[%clk 0:02:58]} 4. Nf3 {[%clk 0:02:59]}  Nc6 {[%clk 0:02:58]} 5. dxc5 {[%clk 0:02:58]}  Bg4 {[%clk 0:02:58]} 6. c3 {[%clk 0:02:59]}  e6 {[%clk 0:02:55]} 7. Be3 {[%clk 0:02:56]}  Nge7 {[%clk 0:02:50]} 8. Nbd2 {[%clk 0:02:53]}  Nf5 {[%clk 0:02:50]} 9. Bd4 {[%clk 0:02:51]}  Be7 {[%clk 0:02:46]} 10. Bb5 {[%clk 0:02:49]}  O-O {[%clk 0:02:45]} 11. Bxc6 {[%clk 0:02:49]}  bxc6 {[%clk 0:02:45]} 12. h3 {[%clk 0:02:50]}  Nxd4 {[%clk 0:02:42]} 13. hxg4 {[%clk 0:02:32]}  Nb5 {[%clk 0:02:23]} 14. Qc2 {[%clk 0:02:26]}  g6 {[%clk 0:02:23]} 15. O-O-O {[%clk 0:02:26]}  Qa5 {[%clk 0:02:21]} 16. a4 {[%clk 0:02:16]}  Na3 {[%clk 0:02:17]} 17. bxa3 {[%clk 0:02:13]}  Bxc5 {[%clk 0:02:18]} 18. Nb1 {[%clk 0:02:06]}  Rab8 {[%clk 0:02:14]} 19. Nd4 {[%clk 0:02:03]}  Bxd4 {[%clk 0:01:49]} 20. Rxd4 {[%clk 0:01:50]}  c5 {[%clk 0:01:49]} 21. Rd3 {[%clk 0:01:51]}  Rb7 {[%clk 0:01:42]} 22. Rdh3 {[%clk 0:01:51]}  Rfb8 {[%clk 0:01:42]} 23. Nd2 {[%clk 0:01:39]}  Rb2 {[%clk 0:01:23]} 24. Qxb2 {[%clk 0:01:26]}  Rxb2 {[%clk 0:01:23]} 25. Kxb2 {[%clk 0:01:27]}  Qxa4 {[%clk 0:01:23]} 26. Rxh7 {[%clk 0:01:24]}  Kf8 {[%clk 0:01:24]} 27. Rh8+ {[%clk 0:01:22]}  Ke7 {[%clk 0:01:24]} 28. Rb8 {[%clk 0:01:21]}  Qf4 {[%clk 0:01:17]} 29. Nf3 {[%clk 0:01:17]}  Qxg4 {[%clk 0:01:05]} 30. Rhh8 {[%clk 0:01:12]}  Kd7 {[%clk 0:01:01]} 31. Rb7+ {[%clk 0:01:01]}  Kc6 {[%clk 0:01:01]} 32. Rxf7 {[%clk 0:00:59]}  Qxg2 {[%clk 0:00:43]} 33. Nd2 {[%clk 0:00:57]}  Qg5 {[%clk 0:00:30]} 34. f4 {[%clk 0:00:36]}  Qg2 {[%clk 0:00:29]} 35. Kc2 {[%clk 0:00:36]}  d4 {[%clk 0:00:25]} 36. cxd4 {[%clk 0:00:36]}  cxd4 {[%clk 0:00:26]} 37. Rc8+ {[%clk 0:00:36]}  Kb6 {[%clk 0:00:26]} 38. Rc4 {[%clk 0:00:32]}  Qd5 {[%clk 0:00:18]} 39. Rfc7 {[%clk 0:00:31]}  d3+ {[%clk 0:00:09]} 40. Kc3 {[%clk 0:00:30]}  Qa5+ {[%clk 0:00:09]} 41. Kxd3 {[%clk 0:00:30]}  Qxa3+ {[%clk 0:00:10]} 42. Rc3 {[%clk 0:00:28]}  Qa6+ {[%clk 0:00:10]} 43. Ke3 {[%clk 0:00:24]}  Qa1 {[%clk 0:00:10]} 44. Rc1 {[%clk 0:00:15]}  Qa3+ {[%clk 0:00:08]} 45. R7c3 {[%clk 0:00:16]}  Qa2 {[%clk 0:00:05]} 46. Rb3+ {[%clk 0:00:11]}  Ka6 {[%clk 0:00:00]} 47. Rcc3 {[%clk 0:00:05]} 1-0

[Event "January 2 Late 2024"]
[Site "https://www.chess.com"]
[Date "2024.01.02"]
[Round "11"]
[White "Brown_Mamba24"]
[Black "Gurevich, Dmitry"]
[Result "0-1"]
[Board "49"]
[TimeControl "180+1"]
[BlackFideId "2000407"]
[WhiteElo "2622"]
[BlackElo "2458"]
[BlackTeam "USA"]
[WhiteClock "0:00:21"]
[BlackClock "0:01:03"]

1. d4 {[%clk 0:03:00]}  Nf6 {[%clk 0:02:55]} 2. c4 {[%clk 0:03:00]}  a6 {[%clk 0:02:55]} 3. Nc3 {[%clk 0:03:00]}  c5 {[%clk 0:02:54]} 4. dxc5 {[%clk 0:02:58]}  e6 {[%clk 0:02:53]} 5. Nf3 {[%clk 0:02:42]}  Bxc5 {[%clk 0:02:48]} 6. a3 {[%clk 0:02:40]}  Qb6 {[%clk 0:02:44]} 7. e3 {[%clk 0:02:39]}  Qc7 {[%clk 0:02:44]} 8. b4 {[%clk 0:02:39]}  Be7 {[%clk 0:02:44]} 9. Bb2 {[%clk 0:02:38]}  b6 {[%clk 0:02:44]} 10. Bd3 {[%clk 0:02:36]}  Bb7 {[%clk 0:02:44]} 11. O-O {[%clk 0:02:37]}  d6 {[%clk 0:02:44]} 12. h3 {[%clk 0:02:36]}  Nbd7 {[%clk 0:02:44]} 13. Rc1 {[%clk 0:02:35]}  O-O {[%clk 0:02:44]} 14. Be2 {[%clk 0:02:23]}  Rac8 {[%clk 0:02:43]} 15. Nd4 {[%clk 0:02:22]}  Rfe8 {[%clk 0:02:42]} 16. Bf3 {[%clk 0:02:06]}  Bxf3 {[%clk 0:02:34]} 17. Qxf3 {[%clk 0:02:07]}  Ne5 {[%clk 0:02:33]} 18. Qd1 {[%clk 0:02:03]}  Nxc4 {[%clk 0:02:32]} 19. Qb3 {[%clk 0:02:00]}  Nd2 {[%clk 0:02:28]} 20. Qa4 {[%clk 0:01:59]}  Nxf1 {[%clk 0:02:27]} 21. Kxf1 {[%clk 0:01:58]}  Qb7 {[%clk 0:02:24]} 22. b5 {[%clk 0:01:53]}  axb5 {[%clk 0:02:19]} 23. Qxb5 {[%clk 0:01:51]}  Ne4 {[%clk 0:02:10]} 24. Nxe4 {[%clk 0:01:46]}  Qxe4 {[%clk 0:02:10]} 25. f3 {[%clk 0:01:33]}  Qd5 {[%clk 0:02:05]} 26. Qd7 {[%clk 0:01:23]}  Rxc1+ {[%clk 0:02:01]} 27. Bxc1 {[%clk 0:01:24]}  Qc4+ {[%clk 0:01:50]} 28. Kf2 {[%clk 0:01:07]}  Qc8 {[%clk 0:01:47]} 29. Qb5 {[%clk 0:01:06]}  d5 {[%clk 0:01:45]} 30. Bd2 {[%clk 0:01:02]}  Bc5 {[%clk 0:01:42]} 31. Nc6 {[%clk 0:01:00]}  Qd7 {[%clk 0:01:38]} 32. Bc3 {[%clk 0:00:42]}  Rc8 {[%clk 0:01:34]} 33. Nd4 {[%clk 0:00:42]}  Qxb5 {[%clk 0:01:31]} 34. Nxb5 {[%clk 0:00:43]}  Bxa3 {[%clk 0:01:30]} 35. Bxg7 {[%clk 0:00:40]}  Rc2+ {[%clk 0:01:25]} 36. Kg3 {[%clk 0:00:39]}  Kxg7 {[%clk 0:01:24]} 37. Nxa3 {[%clk 0:00:39]}  Rc3 {[%clk 0:01:24]} 38. Nb5 {[%clk 0:00:40]}  Rxe3 {[%clk 0:01:23]} 39. Kf4 {[%clk 0:00:41]}  Re2 {[%clk 0:01:18]} 40. g4 {[%clk 0:00:40]}  Rb2 {[%clk 0:01:16]} 41. Nd6 {[%clk 0:00:40]}  b5 {[%clk 0:01:15]} 42. Ke5 {[%clk 0:00:40]}  b4 {[%clk 0:01:12]} 43. Kd4 {[%clk 0:00:40]}  Rc2 {[%clk 0:01:10]} 44. Kd3 {[%clk 0:00:22]}  Rc3+ {[%clk 0:01:04]} 45. Ke2 {[%clk 0:00:21]}  b3 {[%clk 0:01:03]} 0-1

[Event "January 2 Late 2024"]
[Site "https://www.chess.com"]
[Date "2024.01.02"]
[Round "11"]
[White "Sztokbant, Bernardo Vainzoff"]
[Black "Coca Cubillos, Jesus Alberto"]
[Result "1-0"]
[Board "50"]
[TimeControl "180+1"]
[WhiteFideId "2115956"]
[BlackFideId "4462912"]
[WhiteElo "2501"]
[BlackElo "2616"]
[WhiteTeam "BRA"]
[BlackTeam "COL"]
[WhiteClock "0:02:24"]
[BlackClock "0:01:38"]

1. e4 {[%clk 0:02:59]}  g6 {[%clk 0:02:59]} 2. d4 {[%clk 0:02:58]}  Bg7 {[%clk 0:02:56]} 3. Nf3 {[%clk 0:02:58]}  d6 {[%clk 0:02:56]} 4. Nc3 {[%clk 0:02:57]}  Nc6 {[%clk 0:02:57]} 5. h3 {[%clk 0:02:56]}  e5 {[%clk 0:02:55]} 6. Be3 {[%clk 0:02:56]}  f5 {[%clk 0:02:53]} 7. dxe5 {[%clk 0:02:48]}  Nxe5 {[%clk 0:02:51]} 8. Be2 {[%clk 0:02:38]}  Bd7 {[%clk 0:02:42]} 9. O-O {[%clk 0:02:37]}  Ne7 {[%clk 0:02:25]} 10. Nd4 {[%clk 0:02:32]}  O-O {[%clk 0:02:24]} 11. f4 {[%clk 0:02:31]}  N5c6 {[%clk 0:02:24]} 12. Bc4+ {[%clk 0:02:26]}  Kh8 {[%clk 0:02:01]} 13. Ne6 {[%clk 0:02:26]}  Bxe6 {[%clk 0:01:56]} 14. Bxe6 {[%clk 0:02:27]}  Bxc3 {[%clk 0:01:55]} 15. bxc3 {[%clk 0:02:27]}  fxe4 {[%clk 0:01:38]} 16. Bd4+ {[%clk 0:02:24]} 1-0

[Event "January 2 Late 2024"]
[Site "https://www.chess.com"]
[Date "2024.01.02"]
[Round "11"]
[White "Rees, Ioan"]
[Black "Melian, Juan Sebastian"]
[Result "0-1"]
[Board "51"]
[TimeControl "180+1"]
[WhiteFideId "1801236"]
[BlackFideId "3706575"]
[WhiteElo "2450"]
[BlackElo "2610"]
[WhiteTeam "WLS"]
[BlackTeam "PAR"]
[WhiteClock "0:00:00"]
[BlackClock "0:00:06"]

1. e4 {[%clk 0:03:00]}  c5 {[%clk 0:02:59]} 2. c3 {[%clk 0:02:58]}  e6 {[%clk 0:02:59]} 3. d4 {[%clk 0:02:58]}  Nf6 {[%clk 0:03:00]} 4. Bd3 {[%clk 0:02:54]}  Qc7 {[%clk 0:02:56]} 5. Nf3 {[%clk 0:02:50]}  Be7 {[%clk 0:02:52]} 6. O-O {[%clk 0:02:49]}  Nc6 {[%clk 0:02:49]} 7. Re1 {[%clk 0:02:35]}  d6 {[%clk 0:02:49]} 8. h3 {[%clk 0:02:29]}  O-O {[%clk 0:02:46]} 9. Bf4 {[%clk 0:02:28]}  e5 {[%clk 0:02:44]} 10. dxe5 {[%clk 0:02:29]}  dxe5 {[%clk 0:02:45]} 11. Bh2 {[%clk 0:02:25]}  Rd8 {[%clk 0:02:44]} 12. Na3 {[%clk 0:02:22]}  Be6 {[%clk 0:02:42]} 13. Qe2 {[%clk 0:02:20]}  h6 {[%clk 0:02:14]} 14. Nc4 {[%clk 0:02:19]}  Nd7 {[%clk 0:02:12]} 15. Ne3 {[%clk 0:02:14]}  Nf6 {[%clk 0:02:03]} 16. b3 {[%clk 0:02:01]}  Bf8 {[%clk 0:01:50]} 17. Nh4 {[%clk 0:02:00]}  g6 {[%clk 0:01:42]} 18. Bc4 {[%clk 0:01:57]}  Bxc4 {[%clk 0:01:27]} 19. Qxc4 {[%clk 0:01:58]}  Bg7 {[%clk 0:01:28]} 20. Qxc5 {[%clk 0:01:50]}  Nxe4 {[%clk 0:01:27]} 21. Qc4 {[%clk 0:01:42]}  Nd2 {[%clk 0:01:15]} 22. Qe2 {[%clk 0:01:32]}  Ne4 {[%clk 0:01:14]} 23. c4 {[%clk 0:01:09]}  Nd4 {[%clk 0:00:56]} 24. Qb2 {[%clk 0:01:08]}  Nc5 {[%clk 0:00:49]} 25. Nd5 {[%clk 0:01:06]}  Qd6 {[%clk 0:00:17]} 26. Rad1 {[%clk 0:00:57]}  Nc6 {[%clk 0:00:12]} 27. Nf3 {[%clk 0:00:53]}  Re8 {[%clk 0:00:08]} 28. Nb6 {[%clk 0:00:36]}  Qb8 {[%clk 0:00:08]} 29. Nxa8 {[%clk 0:00:34]}  Qxa8 {[%clk 0:00:09]} 30. Nxe5 {[%clk 0:00:22]}  Nb4 {[%clk 0:00:08]} 31. Qd4 {[%clk 0:00:18]}  Ne6 {[%clk 0:00:04]} 32. Qd6 {[%clk 0:00:18]}  Nc2 {[%clk 0:00:02]} 33. Re2 {[%clk 0:00:18]}  Rd8 {[%clk 0:00:03]} 34. Rxc2 {[%clk 0:00:14]}  Rxd6 {[%clk 0:00:03]} 35. Rxd6 {[%clk 0:00:15]}  Qe8 {[%clk 0:00:02]} 36. Rcd2 {[%clk 0:00:15]}  Kh7 {[%clk 0:00:02]} 37. Rd7 {[%clk 0:00:14]}  Bxe5 {[%clk 0:00:03]} 38. Bxe5 {[%clk 0:00:15]}  g5 {[%clk 0:00:04]} 39. Bh2 {[%clk 0:00:15]}  Kg6 {[%clk 0:00:04]} 40. Bg3 {[%clk 0:00:15]}  Qc8 {[%clk 0:00:03]} 41. R7d6 {[%clk 0:00:14]}  h5 {[%clk 0:00:03]} 42. h4 {[%clk 0:00:13]}  Kf5 {[%clk 0:00:02]} 43. hxg5 {[%clk 0:00:13]}  Kxg5 {[%clk 0:00:03]} 44. R2d5+ {[%clk 0:00:13]}  Kg6 {[%clk 0:00:04]} 45. Rd7 {[%clk 0:00:13]}  Qc6 {[%clk 0:00:03]} 46. R7d6 {[%clk 0:00:12]}  Qc8 {[%clk 0:00:03]} 47. f3 {[%clk 0:00:09]}  Qh8 {[%clk 0:00:04]} 48. Bf2 {[%clk 0:00:08]}  Qa1+ {[%clk 0:00:03]} 49. Kh2 {[%clk 0:00:09]}  Qxa2 {[%clk 0:00:04]} 50. Be3 {[%clk 0:00:08]}  h4 {[%clk 0:00:04]} 51. Rd7 {[%clk 0:00:07]}  Kf6 {[%clk 0:00:04]} 52. Rxb7 {[%clk 0:00:07]}  Qe2 {[%clk 0:00:03]} 53. Rdd7 {[%clk 0:00:05]}  Qxe3 {[%clk 0:00:03]} 54. Rxf7+ {[%clk 0:00:05]}  Ke5 {[%clk 0:00:03]} 55. Rbe7 {[%clk 0:00:04]}  Qg5 {[%clk 0:00:03]} 56. Re8 {[%clk 0:00:03]}  Qg3+ {[%clk 0:00:03]} 57. Kg1 {[%clk 0:00:03]}  Qe1+ {[%clk 0:00:04]} 58. Kh2 {[%clk 0:00:03]}  Qg3+ {[%clk 0:00:05]} 59. Kg1 {[%clk 0:00:00]}  h3 {[%clk 0:00:06]} 0-1